[Event "Titled Tuesday Blitz November 14 Late 2023"]
[White "Bettalli, Francesco"]
[Black "Henriquez Villagra, Cristobal"]
[WhiteFideId "2816453"]
[BlackFideId "3409350"]
[WhiteElo "2578"]
[BlackElo "2861"]
[Result "0-1"]
[Round "7"]
[TimeControl "180+1"]
[Date "2023.11.14"]
[WhiteClock "0:00:00"]
[BlackClock "0:00:10"]
[Board "23"]

1. e4 {[%clk 0:03:00]}  c5 {[%clk 0:02:52]} 2. Nc3 {[%clk 0:03:00]}  a6 {[%clk 0:02:52]} 3. g3 {[%clk 0:03:00]}  b5 {[%clk 0:02:52]} 4. Bg2 {[%clk 0:03:00]}  Bb7 {[%clk 0:02:53]} 5. Nh3 {[%clk 0:03:00]}  Nc6 {[%clk 0:02:42]} 6. O-O {[%clk 0:03:00]}  g6 {[%clk 0:02:39]} 7. f4 {[%clk 0:02:58]}  Bg7 {[%clk 0:02:39]} 8. d3 {[%clk 0:02:58]}  d6 {[%clk 0:02:17]} 9. Be3 {[%clk 0:02:58]}  h6 {[%clk 0:02:04]} 10. Kh1 {[%clk 0:02:34]}  Nd4 {[%clk 0:02:02]} 11. Rb1 {[%clk 0:02:32]}  Rc8 {[%clk 0:02:02]} 12. Ne2 {[%clk 0:02:31]}  e6 {[%clk 0:01:58]} 13. c3 {[%clk 0:02:30]}  Nxe2 {[%clk 0:01:58]} 14. Qxe2 {[%clk 0:02:31]}  Ne7 {[%clk 0:01:59]} 15. g4 {[%clk 0:02:27]}  Qd7 {[%clk 0:01:40]} 16. Rbe1 {[%clk 0:02:24]}  O-O {[%clk 0:01:39]} 17. f5 {[%clk 0:02:20]}  exf5 {[%clk 0:01:32]} 18. gxf5 {[%clk 0:02:19]}  gxf5 {[%clk 0:01:33]} 19. exf5 {[%clk 0:02:17]}  Bxg2+ {[%clk 0:01:28]} 20. Qxg2 {[%clk 0:02:18]}  Nxf5 {[%clk 0:01:29]} 21. Nf4 {[%clk 0:02:02]}  Nxe3 {[%clk 0:01:13]} 22. Rxe3 {[%clk 0:02:01]}  Kh8 {[%clk 0:01:11]} 23. Rg3 {[%clk 0:01:57]}  Be5 {[%clk 0:00:59]} 24. Rh3 {[%clk 0:01:29]}  Kh7 {[%clk 0:00:51]} 25. Nd5 {[%clk 0:01:09]}  Qe6 {[%clk 0:00:39]} 26. c4 {[%clk 0:00:36]}  f5 {[%clk 0:00:37]} 27. Rh5 {[%clk 0:00:32]}  Rg8 {[%clk 0:00:37]} 28. Qh3 {[%clk 0:00:31]}  Rcf8 {[%clk 0:00:37]} 29. Rhxf5 {[%clk 0:00:15]}  Rxf5 {[%clk 0:00:37]} 30. Qxf5+ {[%clk 0:00:08]}  Qxf5 {[%clk 0:00:37]} 31. Rxf5 {[%clk 0:00:09]}  Bxb2 {[%clk 0:00:24]} 32. Rf7+ {[%clk 0:00:07]}  Kh8 {[%clk 0:00:22]} 33. Ne7 {[%clk 0:00:05]}  Rg4 {[%clk 0:00:15]} 34. Nf5 {[%clk 0:00:05]}  bxc4 {[%clk 0:00:13]} 35. dxc4 {[%clk 0:00:04]}  Bd4 {[%clk 0:00:12]} 36. h3 {[%clk 0:00:04]}  Rg1+ {[%clk 0:00:12]} 37. Kh2 {[%clk 0:00:04]}  Rc1 {[%clk 0:00:13]} 38. Nxd6 {[%clk 0:00:04]}  Be5+ {[%clk 0:00:13]} 39. Kg2 {[%clk 0:00:05]}  Bxd6 {[%clk 0:00:14]} 40. Rf6 {[%clk 0:00:05]}  Rd1 {[%clk 0:00:10]} 41. Rxh6+ {[%clk 0:00:04]}  Kg7 {[%clk 0:00:11]} 42. Re6 {[%clk 0:00:04]}  Kf7 {[%clk 0:00:11]} 43. Rh6 {[%clk 0:00:04]}  Rd4 {[%clk 0:00:11]} 44. Kf3 {[%clk 0:00:05]}  Ke7 {[%clk 0:00:12]} 45. Rh7+ {[%clk 0:00:05]}  Ke6 {[%clk 0:00:12]} 46. Ra7 {[%clk 0:00:05]}  Rd3+ {[%clk 0:00:10]} 47. Kg4 {[%clk 0:00:02]}  Rg3+ {[%clk 0:00:10]} 48. Kh4 {[%clk 0:00:03]}  Ra3 {[%clk 0:00:11]} 49. Kg4 {[%clk 0:00:02]}  Rxa2 {[%clk 0:00:11]} 50. h4 {[%clk 0:00:02]}  a5 {[%clk 0:00:10]} 51. h5 {[%clk 0:00:03]}  Be5 {[%clk 0:00:11]} 52. h6 {[%clk 0:00:03]}  Bd4 {[%clk 0:00:10]} 53. h7 {[%clk 0:00:00]}  a4 {[%clk 0:00:10]} 0-1


[Site "https://www.chess.com"]

[Event "Titled Tuesday Blitz November 14 Late 2023"]
[White "Beerdsen, Thomas"]
[Black "Chylewski, Patryk"]
[WhiteFideId "1030108"]
[BlackFideId "1186191"]
[WhiteElo "2860"]
[BlackElo "2566"]
[Result "1-0"]
[Round "7"]
[TimeControl "180+1"]
[Date "2023.11.14"]
[WhiteClock "0:01:44"]
[BlackClock "0:00:17"]
[Board "24"]

1. e4 {[%clk 0:03:00]}  e5 {[%clk 0:02:48]} 2. d4 {[%clk 0:03:00]}  exd4 {[%clk 0:02:47]} 3. Qxd4 {[%clk 0:03:01]}  Nc6 {[%clk 0:02:47]} 4. Qd3 {[%clk 0:03:02]}  Bc5 {[%clk 0:02:43]} 5. Nc3 {[%clk 0:03:00]}  d6 {[%clk 0:02:42]} 6. Be3 {[%clk 0:02:59]}  Bxe3 {[%clk 0:02:40]} 7. Qxe3 {[%clk 0:03:00]}  Nf6 {[%clk 0:02:36]} 8. O-O-O {[%clk 0:02:59]}  Qe7 {[%clk 0:02:31]} 9. f3 {[%clk 0:02:58]}  Be6 {[%clk 0:02:17]} 10. g4 {[%clk 0:02:56]}  O-O-O {[%clk 0:02:04]} 11. Bb5 {[%clk 0:02:54]}  Kb8 {[%clk 0:01:47]} 12. Bxc6 {[%clk 0:02:54]}  bxc6 {[%clk 0:01:48]} 13. Nge2 {[%clk 0:02:55]}  Bc8 {[%clk 0:01:45]} 14. Nd4 {[%clk 0:02:53]}  Bb7 {[%clk 0:01:42]} 15. Nf5 {[%clk 0:02:46]}  Qf8 {[%clk 0:01:41]} 16. e5 {[%clk 0:02:47]}  dxe5 {[%clk 0:01:21]} 17. Qxe5 {[%clk 0:02:48]}  Re8 {[%clk 0:01:13]} 18. Qa5 {[%clk 0:02:45]}  Nd5 {[%clk 0:01:11]} 19. a3 {[%clk 0:02:30]}  g6 {[%clk 0:01:10]} 20. Nd4 {[%clk 0:02:29]}  Qd6 {[%clk 0:01:06]} 21. Nxc6+ {[%clk 0:02:24]}  Qxc6 {[%clk 0:01:01]} 22. Nxd5 {[%clk 0:02:24]}  Re2 {[%clk 0:00:57]} 23. Nc3 {[%clk 0:02:16]}  Rf2 {[%clk 0:00:52]} 24. Rd4 {[%clk 0:02:14]}  Qxf3 {[%clk 0:00:46]} 25. Rhd1 {[%clk 0:02:13]}  Rc8 {[%clk 0:00:36]} 26. Rb4 {[%clk 0:01:57]}  Qe3+ {[%clk 0:00:30]} 27. Kb1 {[%clk 0:01:57]}  Ka8 {[%clk 0:00:25]} 28. Qb5 {[%clk 0:01:42]}  Rb8 {[%clk 0:00:17]} 29. Qxb7+ {[%clk 0:01:42]}  Rxb7 {[%clk 0:00:16]} 30. Rd8+ {[%clk 0:01:43]}  Rb8 {[%clk 0:00:17]} 31. Rdxb8# {[%clk 0:01:44]} 1-0


[Site "https://www.chess.com"]

[Event "Titled Tuesday Blitz November 14 Late 2023"]
[White "ArtemDyachuk"]
[Black "Bortnyk, Olexandr"]
[BlackFideId "14120828"]
[WhiteElo "2629"]
[BlackElo "2996"]
[Result "0-1"]
[Round "7"]
[TimeControl "180+1"]
[Date "2023.11.14"]
[WhiteClock "0:00:27"]
[BlackClock "0:00:21"]
[Board "25"]

1. e4 {[%clk 0:03:00]}  a6 {[%clk 0:02:11]} 2. d4 {[%clk 0:02:56]}  c6 {[%clk 0:02:11]} 3. Nf3 {[%clk 0:02:54]}  g6 {[%clk 0:02:10]} 4. h4 {[%clk 0:02:51]}  h6 {[%clk 0:02:08]} 5. Bc4 {[%clk 0:02:44]}  d5 {[%clk 0:02:07]} 6. exd5 {[%clk 0:02:41]}  cxd5 {[%clk 0:02:08]} 7. Bd3 {[%clk 0:02:42]}  Nc6 {[%clk 0:02:07]} 8. c3 {[%clk 0:02:42]}  Bg4 {[%clk 0:02:05]} 9. Nbd2 {[%clk 0:02:40]}  Bg7 {[%clk 0:02:05]} 10. Nf1 {[%clk 0:02:40]}  e5 {[%clk 0:02:04]} 11. dxe5 {[%clk 0:02:39]}  Nxe5 {[%clk 0:02:05]} 12. Be2 {[%clk 0:02:39]}  Bxf3 {[%clk 0:01:52]} 13. Bxf3 {[%clk 0:02:38]}  Nf6 {[%clk 0:01:53]} 14. Ne3 {[%clk 0:02:27]}  Nxf3+ {[%clk 0:01:48]} 15. Qxf3 {[%clk 0:02:26]}  O-O {[%clk 0:01:48]} 16. h5 {[%clk 0:02:26]}  d4 {[%clk 0:01:39]} 17. cxd4 {[%clk 0:02:15]}  Qxd4 {[%clk 0:01:32]} 18. O-O {[%clk 0:02:13]}  Nxh5 {[%clk 0:01:27]} 19. Qxb7 {[%clk 0:02:12]}  Nf4 {[%clk 0:01:13]} 20. Qf3 {[%clk 0:02:09]}  Nd3 {[%clk 0:01:10]} 21. Rd1 {[%clk 0:02:01]}  Rfd8 {[%clk 0:01:10]} 22. Nf1 {[%clk 0:01:52]}  Ne5 {[%clk 0:00:48]} 23. Qxa8 {[%clk 0:01:42]}  Qxd1 {[%clk 0:00:49]} 24. Qxa6 {[%clk 0:01:12]}  Rd3 {[%clk 0:00:11]} 25. a4 {[%clk 0:00:32]}  Qe1 {[%clk 0:00:07]} 26. Bf4 {[%clk 0:00:14]}  Qxa1 {[%clk 0:00:04]} 27. Bxe5 {[%clk 0:00:15]}  Rd1 {[%clk 0:00:03]} 28. Bxg7 {[%clk 0:00:14]}  Kxg7 {[%clk 0:00:04]} 29. Qb5 {[%clk 0:00:15]}  Rb1 {[%clk 0:00:02]} 30. Qe5+ {[%clk 0:00:12]}  Kh7 {[%clk 0:00:02]} 31. Qd5 {[%clk 0:00:11]}  Rxf1+ {[%clk 0:00:02]} 32. Kh2 {[%clk 0:00:10]}  Rxf2 {[%clk 0:00:03]} 33. Qd4 {[%clk 0:00:10]}  Qxb2 {[%clk 0:00:03]} 34. Qd5 {[%clk 0:00:10]}  Qa2 {[%clk 0:00:03]} 35. Qc6 {[%clk 0:00:09]}  Rf4 {[%clk 0:00:03]} 36. Kg3 {[%clk 0:00:09]}  Qxa4 {[%clk 0:00:03]} 37. Qd5 {[%clk 0:00:08]}  Qe4 {[%clk 0:00:04]} 38. Qd7 {[%clk 0:00:07]}  Qe1+ {[%clk 0:00:03]} 39. Kxf4 {[%clk 0:00:07]}  Qf2+ {[%clk 0:00:03]} 40. Ke5 {[%clk 0:00:07]}  Kg7 {[%clk 0:00:03]} 41. g4 {[%clk 0:00:05]}  Qe3+ {[%clk 0:00:02]} 42. Kd6 {[%clk 0:00:05]}  Qd4+ {[%clk 0:00:02]} 43. Kc7 {[%clk 0:00:05]}  Qxd7+ {[%clk 0:00:03]} 44. Kb6 {[%clk 0:00:06]}  Kf6 {[%clk 0:00:03]} 45. g5+ {[%clk 0:00:06]}  Kxg5 {[%clk 0:00:04]} 46. Kc5 {[%clk 0:00:06]}  f5 {[%clk 0:00:04]} 47. Kb6 {[%clk 0:00:07]}  Qc8 {[%clk 0:00:03]} 48. Kb5 {[%clk 0:00:07]}  Qc7 {[%clk 0:00:04]} 49. Kb4 {[%clk 0:00:07]}  Qc6 {[%clk 0:00:04]} 50. Kb3 {[%clk 0:00:08]}  Qc5 {[%clk 0:00:05]} 51. Kb2 {[%clk 0:00:09]}  Qc4 {[%clk 0:00:05]} 52. Kb1 {[%clk 0:00:10]}  Qc3 {[%clk 0:00:05]} 53. Ka2 {[%clk 0:00:10]}  Qb4 {[%clk 0:00:05]} 54. Ka1 {[%clk 0:00:11]}  Kf4 {[%clk 0:00:05]} 55. Ka2 {[%clk 0:00:11]}  Ke3 {[%clk 0:00:06]} 56. Ka1 {[%clk 0:00:12]}  Kd2 {[%clk 0:00:07]} 57. Ka2 {[%clk 0:00:12]}  Kc1 {[%clk 0:00:08]} 58. Ka1 {[%clk 0:00:13]}  f4 {[%clk 0:00:09]} 59. Ka2 {[%clk 0:00:13]}  f3 {[%clk 0:00:10]} 60. Ka1 {[%clk 0:00:14]}  f2 {[%clk 0:00:10]} 61. Ka2 {[%clk 0:00:15]}  g5 {[%clk 0:00:11]} 62. Ka1 {[%clk 0:00:16]}  g4 {[%clk 0:00:12]} 63. Ka2 {[%clk 0:00:16]}  g3 {[%clk 0:00:13]} 64. Ka1 {[%clk 0:00:17]}  g2 {[%clk 0:00:14]} 65. Ka2 {[%clk 0:00:18]}  h5 {[%clk 0:00:15]} 66. Ka1 {[%clk 0:00:19]}  h4 {[%clk 0:00:16]} 67. Ka2 {[%clk 0:00:19]}  h3 {[%clk 0:00:17]} 68. Ka1 {[%clk 0:00:20]}  h2 {[%clk 0:00:18]} 69. Ka2 {[%clk 0:00:21]}  f1=Q {[%clk 0:00:17]} 70. Ka1 {[%clk 0:00:22]}  g1=Q {[%clk 0:00:18]} 71. Ka2 {[%clk 0:00:22]}  h1=Q {[%clk 0:00:19]} 72. Ka1 {[%clk 0:00:23]}  Qbb5 {[%clk 0:00:18]} 73. Ka2 {[%clk 0:00:23]}  Qfc4+ {[%clk 0:00:16]} 74. Ka1 {[%clk 0:00:23]}  Qcc6 {[%clk 0:00:17]} 75. Ka2 {[%clk 0:00:23]}  Qd1 {[%clk 0:00:15]} 76. Ka1 {[%clk 0:00:23]}  Qdd7 {[%clk 0:00:16]} 77. Ka2 {[%clk 0:00:23]}  Qh4 {[%clk 0:00:15]} 78. Ka1 {[%clk 0:00:23]}  Kd2 {[%clk 0:00:14]} 79. Ka2 {[%clk 0:00:23]}  Ke3 {[%clk 0:00:15]} 80. Ka1 {[%clk 0:00:23]}  Ke4 {[%clk 0:00:16]} 81. Ka2 {[%clk 0:00:24]}  Ke5 {[%clk 0:00:17]} 82. Ka1 {[%clk 0:00:25]}  Ke6 {[%clk 0:00:18]} 83. Ka2 {[%clk 0:00:25]}  Ke7 {[%clk 0:00:19]} 84. Ka1 {[%clk 0:00:26]}  Ke8 {[%clk 0:00:20]} 85. Ka2 {[%clk 0:00:27]}  Qha4# {[%clk 0:00:21]} 0-1


[Site "https://www.chess.com"]

[Event "Titled Tuesday Blitz November 14 Late 2023"]
[White "Sakun, Volodymyr"]
[Black "Mitrabha, Guha"]
[WhiteFideId "14114062"]
[BlackFideId "5057000"]
[WhiteElo "2620"]
[BlackElo "2927"]
[Result "0-1"]
[Round "7"]
[TimeControl "180+1"]
[Date "2023.11.14"]
[WhiteClock "0:00:00"]
[BlackClock "0:01:54"]
[Board "26"]

1. e4 {[%clk 0:02:59]}  c6 {[%clk 0:02:57]} 2. d4 {[%clk 0:02:59]}  d5 {[%clk 0:02:58]} 3. e5 {[%clk 0:02:59]}  Bf5 {[%clk 0:02:58]} 4. Nf3 {[%clk 0:02:59]}  e6 {[%clk 0:02:58]} 5. Be2 {[%clk 0:03:00]}  Ne7 {[%clk 0:02:59]} 6. Nbd2 {[%clk 0:02:58]}  Nd7 {[%clk 0:02:58]} 7. Nb3 {[%clk 0:02:58]}  a5 {[%clk 0:02:58]} 8. a4 {[%clk 0:02:58]}  h6 {[%clk 0:02:57]} 9. Bd2 {[%clk 0:02:57]}  Bh7 {[%clk 0:02:57]} 10. O-O {[%clk 0:02:56]}  Nf5 {[%clk 0:02:57]} 11. Qe1 {[%clk 0:02:19]}  b6 {[%clk 0:02:52]} 12. c4 {[%clk 0:02:18]}  dxc4 {[%clk 0:02:48]} 13. Bxc4 {[%clk 0:02:19]}  Be7 {[%clk 0:02:47]} 14. Qe2 {[%clk 0:02:04]}  O-O {[%clk 0:02:46]} 15. Rac1 {[%clk 0:01:58]}  Rc8 {[%clk 0:02:46]} 16. Ba6 {[%clk 0:01:55]}  Rc7 {[%clk 0:02:44]} 17. Rfd1 {[%clk 0:01:21]}  Qa8 {[%clk 0:02:42]} 18. Bd3 {[%clk 0:01:18]}  Rd8 {[%clk 0:02:40]} 19. Be4 {[%clk 0:01:13]}  Bf8 {[%clk 0:02:38]} 20. Qd3 {[%clk 0:01:02]}  g6 {[%clk 0:02:32]} 21. h4 {[%clk 0:00:47]}  Bg7 {[%clk 0:02:30]} 22. Qe2 {[%clk 0:00:42]}  Qc8 {[%clk 0:02:28]} 23. g4 {[%clk 0:00:33]}  Ne7 {[%clk 0:02:27]} 24. h5 {[%clk 0:00:33]}  g5 {[%clk 0:02:26]} 25. Bxh7+ {[%clk 0:00:32]}  Kxh7 {[%clk 0:02:27]} 26. Qe4+ {[%clk 0:00:33]}  Kg8 {[%clk 0:02:28]} 27. Bxg5 {[%clk 0:00:33]}  hxg5 {[%clk 0:02:27]} 28. Nxg5 {[%clk 0:00:33]}  Nf8 {[%clk 0:02:27]} 29. Rc3 {[%clk 0:00:27]}  Bh6 {[%clk 0:02:25]} 30. Nh3 {[%clk 0:00:24]}  Nd5 {[%clk 0:02:17]} 31. g5 {[%clk 0:00:24]}  Nxc3 {[%clk 0:02:15]} 32. bxc3 {[%clk 0:00:24]}  Bg7 {[%clk 0:02:16]} 33. Nf4 {[%clk 0:00:23]}  Nh7 {[%clk 0:02:10]} 34. Qg2 {[%clk 0:00:17]}  c5 {[%clk 0:02:05]} 35. h6 {[%clk 0:00:15]}  cxd4 {[%clk 0:02:02]} 36. hxg7 {[%clk 0:00:14]}  Rxc3 {[%clk 0:02:00]} 37. Nd2 {[%clk 0:00:12]}  Qc6 {[%clk 0:01:58]} 38. Ne4 {[%clk 0:00:12]}  Rc1 {[%clk 0:01:54]} 39. Rf1 {[%clk 0:00:04]}  Rxf1+ {[%clk 0:01:53]} 40. Kxf1 {[%clk 0:00:03]}  Qc1+ {[%clk 0:01:53]} 41. Ke2 {[%clk 0:00:03]}  Qxf4 {[%clk 0:01:53]} 42. Nf6+ {[%clk 0:00:03]}  Nxf6 {[%clk 0:01:53]} 43. gxf6 {[%clk 0:00:03]}  d3+ {[%clk 0:01:54]} 44. Kd1 {[%clk 0:00:00]}  Qxa4+ {[%clk 0:01:54]} 0-1


[Site "https://www.chess.com"]

[Event "Titled Tuesday Blitz November 14 Late 2023"]
[White "BardArtem"]
[Black "Omelja, Artem"]
[BlackFideId "14119846"]
[WhiteElo "2825"]
[BlackElo "2598"]
[Result "1-0"]
[Round "7"]
[TimeControl "180+1"]
[Date "2023.11.14"]
[WhiteClock "0:00:02"]
[BlackClock "0:00:00"]
[Board "29"]

1. e4 {[%clk 0:03:00]}  c5 {[%clk 0:02:59]} 2. c3 {[%clk 0:03:01]}  d5 {[%clk 0:02:59]} 3. exd5 {[%clk 0:03:01]}  Qxd5 {[%clk 0:02:58]} 4. d4 {[%clk 0:03:02]}  Nf6 {[%clk 0:02:59]} 5. Nf3 {[%clk 0:03:02]}  Bg4 {[%clk 0:02:58]} 6. dxc5 {[%clk 0:03:01]}  Qxc5 {[%clk 0:02:49]} 7. h3 {[%clk 0:03:00]}  Bh5 {[%clk 0:02:45]} 8. Be3 {[%clk 0:03:00]}  Qc7 {[%clk 0:02:42]} 9. Na3 {[%clk 0:03:00]}  a6 {[%clk 0:02:41]} 10. Nc4 {[%clk 0:02:54]}  Nbd7 {[%clk 0:02:40]} 11. g4 {[%clk 0:02:49]}  Bg6 {[%clk 0:02:40]} 12. g5 {[%clk 0:02:47]}  Ne4 {[%clk 0:02:30]} 13. Qd4 {[%clk 0:02:38]}  e6 {[%clk 0:02:17]} 14. Nce5 {[%clk 0:02:28]}  Bc5 {[%clk 0:01:59]} 15. Qxd7+ {[%clk 0:02:11]}  Qxd7 {[%clk 0:01:58]} 16. Nxd7 {[%clk 0:02:12]}  Bxe3 {[%clk 0:01:51]} 17. fxe3 {[%clk 0:02:13]}  Kxd7 {[%clk 0:01:50]} 18. Bg2 {[%clk 0:02:11]}  Ke7 {[%clk 0:01:47]} 19. Ne5 {[%clk 0:02:08]}  Bf5 {[%clk 0:01:47]} 20. O-O {[%clk 0:01:57]}  f6 {[%clk 0:01:30]} 21. gxf6+ {[%clk 0:01:55]}  gxf6 {[%clk 0:01:31]} 22. Nf3 {[%clk 0:01:50]}  Rhg8 {[%clk 0:01:27]} 23. Kh2 {[%clk 0:01:50]}  Rxg2+ {[%clk 0:00:48]} 24. Kxg2 {[%clk 0:01:48]}  Rg8+ {[%clk 0:00:49]} 25. Kh2 {[%clk 0:01:47]}  Rg3 {[%clk 0:00:50]} 26. Ng1 {[%clk 0:01:38]}  Rxe3 {[%clk 0:00:49]} 27. Rfe1 {[%clk 0:01:33]}  Rd3 {[%clk 0:00:37]} 28. Rad1 {[%clk 0:01:32]}  Nf2 {[%clk 0:00:27]} 29. Rxd3 {[%clk 0:01:28]}  Nxd3 {[%clk 0:00:28]} 30. Re2 {[%clk 0:01:27]}  e5 {[%clk 0:00:20]} 31. Rd2 {[%clk 0:01:22]}  b5 {[%clk 0:00:13]} 32. Ne2 {[%clk 0:01:23]}  Nc5 {[%clk 0:00:12]} 33. Ng3 {[%clk 0:01:20]}  Be6 {[%clk 0:00:12]} 34. b3 {[%clk 0:01:14]}  f5 {[%clk 0:00:12]} 35. Re2 {[%clk 0:01:09]}  e4 {[%clk 0:00:11]} 36. Nh5 {[%clk 0:01:09]}  Nd3 {[%clk 0:00:10]} 37. Kg3 {[%clk 0:01:06]}  Nc1 {[%clk 0:00:07]} 38. Rc2 {[%clk 0:01:06]}  Nd3 {[%clk 0:00:07]} 39. Nf4 {[%clk 0:01:06]}  Ne5 {[%clk 0:00:07]} 40. Kf2 {[%clk 0:00:45]}  Bf7 {[%clk 0:00:07]} 41. Ke3 {[%clk 0:00:44]}  a5 {[%clk 0:00:06]} 42. Rd2 {[%clk 0:00:38]}  a4 {[%clk 0:00:03]} 43. Nd5+ {[%clk 0:00:30]}  Kf8 {[%clk 0:00:02]} 44. c4 {[%clk 0:00:22]}  axb3 {[%clk 0:00:03]} 45. axb3 {[%clk 0:00:17]}  bxc4 {[%clk 0:00:03]} 46. b4 {[%clk 0:00:16]}  Nd3 {[%clk 0:00:02]} 47. Kd4 {[%clk 0:00:03]}  f4 {[%clk 0:00:00]} 48. Nxf4 {[%clk 0:00:02]} 1-0


[Site "https://www.chess.com"]

[Event "Titled Tuesday Blitz November 14 Late 2023"]
[White "subham777"]
[Black "Ghasi, Ameet K"]
[BlackFideId "409200"]
[WhiteElo "2551"]
[BlackElo "2799"]
[Result "0-1"]
[Round "7"]
[TimeControl "180+1"]
[Date "2023.11.14"]
[WhiteClock "0:00:56"]
[BlackClock "0:01:59"]
[Board "32"]

1. e4 {[%clk 0:03:00]}  g6 {[%clk 0:02:58]} 2. g3 {[%clk 0:03:00]}  Bg7 {[%clk 0:02:58]} 3. Bg2 {[%clk 0:02:58]}  c5 {[%clk 0:02:58]} 4. Ne2 {[%clk 0:02:58]}  Nc6 {[%clk 0:02:58]} 5. O-O {[%clk 0:02:59]}  d6 {[%clk 0:02:58]} 6. c3 {[%clk 0:02:58]}  h5 {[%clk 0:02:52]} 7. d4 {[%clk 0:02:55]}  h4 {[%clk 0:02:51]} 8. Be3 {[%clk 0:02:50]}  Nf6 {[%clk 0:02:43]} 9. dxc5 {[%clk 0:02:46]}  Ng4 {[%clk 0:02:30]} 10. Bd4 {[%clk 0:02:40]}  e5 {[%clk 0:02:15]} 11. Be3 {[%clk 0:02:29]}  Nxe3 {[%clk 0:02:13]} 12. fxe3 {[%clk 0:02:30]}  Qg5 {[%clk 0:02:02]} 13. cxd6 {[%clk 0:02:13]}  Qxe3+ {[%clk 0:02:00]} 14. Kh1 {[%clk 0:00:56]}  hxg3 {[%clk 0:01:59]} 0-1


[Site "https://www.chess.com"]

[Event "Titled Tuesday Blitz November 14 Late 2023"]
[White "JackRodgers"]
[Black "Karacsonyi, Gellert"]
[BlackFideId "764620"]
[WhiteElo "2533"]
[BlackElo "2753"]
[Result "1-0"]
[Round "7"]
[TimeControl "180+1"]
[Date "2023.11.14"]
[WhiteClock "0:01:49"]
[BlackClock "0:02:18"]
[Board "37"]

1. d4 {[%clk 0:02:58]}  Nf6 {[%clk 0:02:56]} 2. Bg5 {[%clk 0:02:58]}  d5 {[%clk 0:02:56]} 3. Bxf6 {[%clk 0:02:57]}  exf6 {[%clk 0:02:57]} 4. e3 {[%clk 0:02:57]}  g6 {[%clk 0:02:56]} 5. h4 {[%clk 0:02:57]}  Nd7 {[%clk 0:02:55]} 6. h5 {[%clk 0:02:57]}  f5 {[%clk 0:02:56]} 7. c4 {[%clk 0:02:56]}  dxc4 {[%clk 0:02:53]} 8. Bxc4 {[%clk 0:02:57]}  Nf6 {[%clk 0:02:53]} 9. Qb3 {[%clk 0:02:48]}  Qe7 {[%clk 0:02:53]} 10. hxg6 {[%clk 0:02:44]}  fxg6 {[%clk 0:02:53]} 11. Nf3 {[%clk 0:02:43]}  Qb4+ {[%clk 0:02:53]} 12. Nc3 {[%clk 0:02:42]}  Qxb3 {[%clk 0:02:53]} 13. Bxb3 {[%clk 0:02:42]}  Bd7 {[%clk 0:02:45]} 14. Ne5 {[%clk 0:02:40]}  Bb4 {[%clk 0:02:40]} 15. Nxg6 {[%clk 0:02:36]}  Ne4 {[%clk 0:02:34]} 16. Nxh8 {[%clk 0:02:25]}  Nxc3 {[%clk 0:02:34]} 17. bxc3 {[%clk 0:02:12]}  Bxc3+ {[%clk 0:02:34]} 18. Ke2 {[%clk 0:02:13]}  Bxa1 {[%clk 0:02:34]} 19. Rxa1 {[%clk 0:02:13]}  a5 {[%clk 0:02:31]} 20. Rh1 {[%clk 0:02:01]}  a4 {[%clk 0:02:28]} 21. Bc4 {[%clk 0:01:59]}  b5 {[%clk 0:02:28]} 22. Bd3 {[%clk 0:01:58]}  a3 {[%clk 0:02:20]} 23. Rxh7 {[%clk 0:01:56]}  Be6 {[%clk 0:02:21]} 24. Bxb5+ {[%clk 0:01:51]}  Kf8 {[%clk 0:02:21]} 25. Ng6+ {[%clk 0:01:49]}  Kg8 {[%clk 0:02:18]} 26. Rh8+ {[%clk 0:01:49]} 1-0


[Site "https://www.chess.com"]

[Event "Titled Tuesday Blitz November 14 Late 2023"]
[White "Urazayev, Arystanbek"]
[Black "Jimenez Ruano, Adrian"]
[WhiteFideId "13709810"]
[BlackFideId "22276050"]
[WhiteElo "2824"]
[BlackElo "2419"]
[Result "1-0"]
[Round "7"]
[TimeControl "180+1"]
[Date "2023.11.14"]
[WhiteClock "0:01:53"]
[BlackClock "0:00:00"]
[Board "44"]

1. Nf3 {[%clk 0:03:00]}  c5 {[%clk 0:02:57]} 2. g3 {[%clk 0:03:01]}  Nc6 {[%clk 0:02:57]} 3. Bg2 {[%clk 0:03:01]}  e5 {[%clk 0:02:57]} 4. O-O {[%clk 0:03:01]}  d5 {[%clk 0:02:51]} 5. d3 {[%clk 0:03:01]}  Nf6 {[%clk 0:02:52]} 6. e4 {[%clk 0:03:02]}  Be7 {[%clk 0:02:51]} 7. exd5 {[%clk 0:03:02]}  Nxd5 {[%clk 0:02:50]} 8. Re1 {[%clk 0:03:03]}  f6 {[%clk 0:02:46]} 9. c3 {[%clk 0:02:57]}  O-O {[%clk 0:02:45]} 10. d4 {[%clk 0:02:58]}  cxd4 {[%clk 0:02:20]} 11. cxd4 {[%clk 0:02:57]}  Bg4 {[%clk 0:02:21]} 12. h3 {[%clk 0:02:56]}  Bxf3 {[%clk 0:01:46]} 13. Qxf3 {[%clk 0:02:55]}  Ndb4 {[%clk 0:01:47]} 14. dxe5 {[%clk 0:02:55]}  Nxe5 {[%clk 0:01:47]} 15. Qb3+ {[%clk 0:02:55]}  Kh8 {[%clk 0:01:45]} 16. Bf4 {[%clk 0:02:56]}  Bc5 {[%clk 0:01:31]} 17. Nc3 {[%clk 0:02:42]}  Ned3 {[%clk 0:01:25]} 18. Be3 {[%clk 0:02:42]}  Re8 {[%clk 0:01:00]} 19. Bxc5 {[%clk 0:02:31]}  Nxe1 {[%clk 0:00:36]} 20. Qxb4 {[%clk 0:02:29]}  Nd3 {[%clk 0:00:26]} 21. Qa3 {[%clk 0:02:25]}  Qc7 {[%clk 0:00:14]} 22. Bd6 {[%clk 0:02:23]}  Qb6 {[%clk 0:00:14]} 23. Rf1 {[%clk 0:02:04]}  Re2 {[%clk 0:00:14]} 24. Nd5 {[%clk 0:02:04]}  Qd4 {[%clk 0:00:12]} 25. Nf4 {[%clk 0:01:55]}  Rxf2 {[%clk 0:00:08]} 26. Qxd3 {[%clk 0:01:55]}  Rxf4+ {[%clk 0:00:06]} 27. Qxd4 {[%clk 0:01:56]}  Rxd4 {[%clk 0:00:07]} 28. Bc5 {[%clk 0:01:56]}  Rc4 {[%clk 0:00:07]} 29. b4 {[%clk 0:01:56]}  Rb8 {[%clk 0:00:05]} 30. Bxa7 {[%clk 0:01:52]}  Ra8 {[%clk 0:00:05]} 31. Bc5 {[%clk 0:01:52]}  Rxa2 {[%clk 0:00:03]} 32. Bd5 {[%clk 0:01:52]}  Rcc2 {[%clk 0:00:01]} 33. Bxa2 {[%clk 0:01:53]}  Rxa2 {[%clk 0:00:02]} 34. Rd1 {[%clk 0:01:53]}  h5 {[%clk 0:00:00]} 35. Rd7 {[%clk 0:01:53]} 1-0


[Site "https://www.chess.com"]